Workbook

Sheet 2.1
B1: Table 2.1
B2: Summary of Customers, Energy Sales and Revenues
K4: Forecast
B5: Line No. | D5: Description | E5: 2018 Approved | G5: 2018 Actual | H5: 2019 Actual | I5: 2020 Forecast | K5: 2021
B6: 1 | D6: Residential
B7: 2 | D7: Customers | E7: 1635.483113 | G7: 1689.135417 | H7: 1730.320444 | I7: 1755.885615 | K7: 1779.796727
B8: 3 | D8: Sales in MWh | E8: 13718.75636 | G8: 15625.65309 | H8: 15384.37 | I8: 16729.71999 | K8: 16209.74587
B9: 4 | D9: MWh sales per customer | E9: =E8/E7 -> 8.388198109 | G9: =G8/G7 -> 9.250681109 | H9: =H8/H7 -> 8.89105255 | I9: =I8/I7 -> 9.527796028 | K9: =K8/K7 -> 9.107638879
B10: 5 | D10: Revenue ($000s) | E10: 2016.448646 | G10: 2261.93001 | H10: 2262.44637 | I10: 2413.205503 | K10: 2384.118869
B11: 6 | D11: Cents per KWh | E11: =SUM(E10/E8)*100 -> 14.6984799 | G11: =SUM(G10/G8)*100 -> 14.47574701 | H11: =SUM(H10/H8)*100 -> 14.70613597 | I11: =SUM(I10/I8)*100 -> 14.42466165 | K11: =SUM(K10/K8)*100 -> 14.7079349
B12: 7 | D12: General Service
B13: 8 | D13: Customers | E13: 489.1226852 | G13: 506 | H13: 517.1388889 | I13: 516.3773474 | K13: 513.5393844
B14: 9 | D14: Sales in MWh | E14: 25436.27031 | G14: 27170.8229 | H14: 29148.334 | I14: 32249.77476 | K14: 32322.92676
B15: 10 | D15: MWh sales per customer | E15: =E14/E13 -> 52.00386546 | G15: =G14/G13 -> 53.69727846 | H15: =H14/H13 -> 56.36461428 | I15: =I14/I13 -> 62.45389137 | K15: =K14/K13 -> 62.94147585
B16: 11 | D16: Revenue ($000s) | E16: 4054.447634 | G16: 4490.15862 | H16: 4833.26634 | I16: 5350.801757 | K16: 5388.077926
B17: 12 | D17: Cents per KWh | E17: =SUM(E16/E14)*100 -> 15.93963102 | G17: =SUM(G16/G14)*100 -> 16.52566298 | H17: =SUM(H16/H14)*100 -> 16.58162123 | I17: =SUM(I16/I14)*100 -> 16.59174923 | K17: =SUM(K16/K14)*100 -> 16.66952367
B18: 13 | D18: Industrial
B19: 14 | D19: Sales in MWh | E19: 32192.51067 | G19: 36909.88966 | H19: 27286.0672 | I19: 64856.37388 | K19: 102903.861
B20: 15 | D20: Revenue ($000s) | E20: 3951.58158 | G20: 4377.74794 | H20: 3672.837764 | I20: 7259.642804 | K20: 11535.49539
B21: 16 | D21: Cents per KWh | E21: =SUM(E20/E19)*100 -> 12.27484746 | G21: =SUM(G20/G19)*100 -> 11.86063676 | H21: =SUM(H20/H19)*100 -> 13.46048786 | I21: =IF(I19=0,0,SUM(I20/I19)*100) -> 11.19341457 | K21: =IF(K19=0,0,SUM(K20/K19)*100) -> 11.20997335
B22: 17 | D22: Street lights
B23: 18 | D23: Sales in MWh | E23: 213.636 | G23: 223.86439 | H23: 167.79 | I23: 167.64 | K23: 167.64
B24: 19 | D24: Revenue ($000s) | E24: 55.56324295 | G24: 87.48778 | H24: 81.86275 | I24: 81.85272 | K24: 81.84144
B25: 20 | D25: Cents per KWh | E25: =SUM(E24/E23)*100 -> 26.00837076 | G25: 39.08070417 | H25: 48.7888134 | I25: =SUM(I24/I23)*100 -> 48.82648533 | K25: 48.81975662
B26: 21 | D26: Space lights
B27: 22 | D27: Sales in MWh | E27: 11.724 | G27: 11.24933 | H27: 10.072 | I27: 9.564 | K27: 9.804
B28: 23 | D28: Revenue ($000s) | E28: 2.632959421 | G28: 3.28594 | H28: 2.68599 | I28: 2.68854 | K28: 2.60508
B29: 24 | D29: Cents per KWh | E29: =SUM(E28/E27)*100 -> 22.45785927 | G29: =SUM(G28/G27)*100 -> 29.21009518 | H29: =SUM(H28/H27)*100 -> 26.66789118 | I29: =SUM(I28/I27)*100 -> 28.11104141 | K29: =SUM(K28/K27)*100 -> 26.57160343
B30: 25 | D30: Total Company - Firm Retail & Ind.
B31: 26 | D31: Customers | E31: =E7+E13 -> 2124.605799 | G31: =G7+G13 -> 2195.135417 | H31: 2247.459333 | I31: =I7+I13 -> 2272.262962 | K31: 2293.336111
B32: 27 | D32: Sales in MWh | E32: =E8+E14+E19+E23+E27 -> 71572.89734 | G32: =G8+G14+G19+G23+G27 -> 79941.47937 | H32: 71996.6332 | I32: =I8+I14+I19+I23+I27 -> 114013.0726 | K32: 151613.9776
B33: 28 | D33: Revenue ($000s) | E33: =E10+E16+E20+E24+E28 -> 10080.67406 | G33: =G10+G16+G20+G24+G28 -> 11220.61029 | H33: =H10+H16+H20+H24+H28 -> 10853.09921 | I33: =I10+I16+I20+I24+I28 -> 15108.19132 | K33: 19392.1387
B34: 29 | D34: Cents per KWh | E34: =SUM(E33/E32)*100 -> 14.0844851 | G34: =SUM(G33/G32)*100 -> 14.03603033 | H34: =SUM(H33/H32)*100 -> 15.07445381 | I34: =SUM(I33/I32)*100 -> 13.25127985 | K34: =SUM(K33/K32)*100 -> 12.79046893
B35: 30 | D35: Wholesale sales
B36: 31 | D36: Sales in MWh | E36: 314700 | G36: 332270.2648 | H36: 331494.725 | I36: 351774.5498 | K36: 343537
B37: 32 | D37: Revenue ($000s) | E37: 26113.806 | G37: 27571.78666 | H37: 27507.07878 | I37: 29190.25214 | K37: 28506.70026
B38: 33 | D38: Cents per KWh | E38: =SUM(E37/E36)*100 -> 8.298 | G38: =SUM(G37/G36)*100 -> 8.298000027 | H38: =SUM(H37/H36)*100 -> 8.297893363 | I38: =SUM(I37/I36)*100 -> 8.298 | K38: =SUM(K37/K36)*100 -> 8.298
B39: 34 | D39: Total Company - Firm
B40: 35 | D40: Sales in MWh | E40: =E32+E36 -> 386272.8973 | G40: =G32+G36 -> 412211.7441 | H40: =H32+H36 -> 403491.3582 | I40: =I32+I36 -> 465787.6224 | K40: 495150.9776
B41: 36 | D41: Revenue ($000s) | E41: =E33+E37 -> 36194.48006 | G41: =G33+G37 -> 38792.39695 | H41: 38360.178 | I41: =I33+I37 -> 44298.44346 | K41: 47898.83896
B42: 37 | D42: Cents per KWh | E42: =SUM(E41/E40)*100 -> 9.370183699 | G42: =SUM(G41/G40)*100 -> 9.410793725 | H42: =SUM(H41/H40)*100 -> 9.507063093 | I42: =SUM(I41/I40)*100 -> 9.510438091 | K42: =SUM(K41/K40)*100 -> 9.67358263
B43: 38 | D43: Secondary
B44: 39 | D44: Sales in MWh | E44: 2059.48 | G44: 257.955 | H44: 0.48 | I44: 0 | K44: 0
B45: 40 | D45: Revenue ($000s) | E45: 115.33088 | G45: 19.62269 | H45: 0.03648 | I45: 0 | K45: 0
B46: 41 | D46: Cents per KWh | E46: =IFERROR(SUM(E45/E44)*100,0) -> 5.6 | G46: =IFERROR(SUM(G45/G44)*100,0) -> 7.607020604 | H46: 0 | I46: =IFERROR(SUM(I45/I44)*100,0) -> 0 | K46: 0
B47: 42 | D47: Total Company
B48: 43 | D48: Sales in MWh | E48: =E40+E44 -> 388332.3773 | G48: =G40+G44 -> 412469.6991 | H48: =H40+H44 -> 403491.8382 | I48: =I40+I44 -> 465787.6224 | K48: 495150.9776
B49: 44 | D49: Revenue ($000s) | E49: =E41+E45 -> 36309.81094 | G49: 38812.01964 | H49: 38360.21448 | I49: =I41+I45 -> 44298.44346 | K49: 47898.83896
B50: 45 | D50: Cents per KWh | E50: =IFERROR(SUM(E49/E48)*100,0) -> 9.350188926 | G50: =IFERROR(SUM(G49/G48)*100,0) -> 9.409665661 | H50: 9.507060824 | I50: =IFERROR(SUM(I49/I48)*100,0) -> 9.510438091 | K50: 9.67358263
B52: 46 | D52: Rider J ($000s) | E52: 13230.79188 | G52: 13328.94691 | H52: 13842.35459 | I52: 15289.31593 | K52: 15896.89317
B54: 47 | D54: Total Sales Revenues1 | E54: =E49+E52 -> 49540.60282 | G54: =G49+G52 -> 52140.96655 | H54: =H49+H52 -> 52202.56907 | I54: =I49+I52 -> 59587.75939 | K54: =K49+K52 -> 63795.73213
B56: 48 | D56: Total Sales Revenues excluding secondary sales | E56: =E54-E45 -> 49425.27194 | G56: =G54-G45 -> 52121.34386 | H56: =H54-H45 -> 52202.53259 | I56: =I54-I45 -> 59587.75939 | K56: =K54-K45 -> 63795.73213
D58: Note:
D59: 1. Excludes revenues from other revenues.

Sheet 2.2
B1: Table 2.2
B2: Summary of Energy Balance, Losses, Peak and Load Factor
K5: Forecast
B6: Line No. | D6: Description | E6: 2018 Approved | G6: 2018 Actual | H6: 2019 Actual | I6: 2020 Forecast | K6: 2021
D7: Sales and Losses
B8: 1 | D8: Total Energy Sales | E8: ='2.1'!E48 -> 388332.3773 | G8: ='2.1'!G48 -> 412469.6991 | H8: ='2.1'!H48 -> 403491.8382 | I8: ='2.1'!I48 -> 465787.6224 | K8: ='2.1'!K48 -> 495150.9776
B9: 2 | D9: Losses - MWh | E9: =E11-E8 -> 34173.24921 | G9: =G11-G8 -> 37898.22905 | H9: =H11-H8 -> 37184.60475 | I9: =I11-I8 -> 42192.79106 | K9: =K11-K8 -> 43575.10603
B10: 3 | D10: Losses - % | E10: =E9/E8 -> 0.088 | G10: =G9/G8 -> 0.09188124396 | H10: =H9/H8 -> 0.09215701838 | I10: =I9/I8 -> 0.09058375326 | K10: =K9/K8 -> 0.08800367565
B11: 4 | D11: Total Generation | E11: =E25+E27+E37+E39 -> 422505.6265 | G11: =G25+G27+G37+G39 -> 450367.9282 | H11: =H25+H27+H37+H39+H28 -> 440676.443 | I11: =I25+I27+I37+I39+I28 -> 507980.4135 | K11: =K25+K27+K37+K39+K28 -> 538726.0837
B13: 5 | D13: Secondary Sales Related Generation | E13: ='2.1'!E44*(1+E10) -> 2240.71424 | G13: ='2.1'!G44*(1+G10) -> 281.6562263 | H13: 0 | I13: ='2.1'!I44*(1+I10) -> 0 | K13: ='2.1'!K44*(1+K10) -> 0
B15: 6 | D15: Firm Load Generation | E15: =E11-E13 -> 420264.9123 | G15: =G11-G13 -> 450086.272 | H15: =H11-H13 -> 440676.443 | I15: =I11-I13 -> 507980.4135 | K15: =K11-K13 -> 538726.0837
D17: Actual Generation - MWh
D19: Hydro Generation
B21: 7 | D21: Whitehorse | E21: 218265.5817 | G21: 228694.7313 | H21: 233672.689 | I21: 263230.8736 | K21: 259116.2413
B22: 8 | D22: Aishihik | E22: 116502.9259 | G22: 126747.5006 | H22: 97293.46 | I22: 118791.9493 | K22: 176164.9952
B23: 9 | D23: Mayo | E23: 76628.20359 | G23: 57609.95123 | H23: 39852.66212 | I23: 54702.5405 | K23: 71201.35518
B25: 10 | D25: Total Hydro | E25: =E21+E22+E23 -> 411396.7112 | G25: =G21+G22+G23 -> 413052.1831 | H25: =H21+H22+H23 -> 370818.8111 | I25: =I21+I22+I23 -> 436725.3634 | K25: =K21+K22+K23 -> 506482.5917
B27: 11 | D27: Wind Turbine | E27: 0 | G27: 0 | H27: 0 | I27: 0 | K27: 0
B28: 12 | D28: IPPs | E28: 0 | G28: 0 | H28: 0 | I28: 55.72 | K28: 1983.07
D30: Diesel Generation1
B32: =B28+1 -> 13 | D32: Whitehorse | E32: 999.759231 | G32: 5518.0388 | H32: 2187.61265 | I32: 13847.71603 | K32: 1869.796516
B33: =B32+1 -> 14 | D33: Faro | E33: 233.9745397 | G33: 301.79725 | H33: 801.69318 | I33: 889.2355107 | K33: 237.1390368
B34: =B33+1 -> 15 | D34: Dawson | E34: 520.7365675 | G34: 1279.389 | H34: 720.036 | I34: 2936.219858 | K34: 822.9684445
B35: =B34+1 -> 16 | D35: Mayo | E35: 17.77698488 | G35: 86.52 | H35: 83.79 | I35: 748.425282 | K35: 21.11209372
B37: =B35+1 -> 17 | D37: Total Diesel | E37: =SUM(E32:E35) -> 1772.247323 | G37: =SUM(G32:G35) -> 7185.74505 | H37: =SUM(H32:H36) -> 3793.13183 | I37: =SUM(I32:I36) -> 18421.59668 | K37: =SUM(K32:K36) -> 2951.016091
B39: =B37+1 -> 18 | D39: LNG Generation1 | E39: 9336.668 | G39: 30130 | H39: 66064.5 | I39: 52777.73337 | K39: 27309.40591
B41: =B39+1 -> 19 | D41: Total Thermal1 | E41: =E37+E39 -> 11108.91532 | G41: =G37+G39 -> 37315.74505 | H41: =H37+H39 -> 69857.63183 | I41: =I37+I39 -> 71199.33006 | K41: =K37+K39 -> 30260.422
D43: Source - %
B45: =B41+1 -> 20 | D45: Hydro Generation | E45: =E25/E11 -> 0.9737070594 | G45: =G25/G11 -> 0.9171438668 | H45: =H25/H11 -> 0.8414763645 | I45: =I25/I11 -> 0.8597287451 | K45: =K25/K11 -> 0.940148634
B47: =B45+1 -> 21 | D47: LNG Generation | E47: =E39/E11 -> 0.0220983282 | G47: =G39/G11 -> 0.0669008562 | H47: =H39/H11 -> 0.1499161143 | I47: =I39/I11 -> 0.1038971818 | K47: =K39/K11 -> 0.05069256295
B49: =B47+1 -> 22 | D49: Diesel Generation | E49: =E37/E11 -> 0.004194612359 | G49: =G37/G11 -> 0.01595527701 | H49: =H37/H11 -> 0.008607521211 | I49: =I37/I11 -> 0.03626438381 | K49: =K37/K11 -> 0.005477767237
B51: =B49+1 -> 23 | D51: IPP Generation | E51: =E27/E11 -> 0 | G51: =G27/G11 -> 0 | H51: =H28/H11 -> 0 | I51: =I28/I11 -> 0.0001096892686 | K51: =K28/K11 -> 0.003681035799
D53: LTA Generation - MWh
B55: =B51+1 -> 24 | D55: LTA Hydro Generation | E55: =E15-E56-E58 -> 403909.9123 | G55: =G15-G56-G58 -> 418694.9801 | H55: =H15-H56-H58-H57 -> 415376.592 | I55: =I15-I56-I58-I57 -> 438905.3403 | K55: =K15-K56-K58-K57 -> 452437.2323
B56: =B55+1 -> 25 | D56: LTA Wind Generation | E56: 0 | G56: 0 | H56: 0 | I56: 0 | K56: 0
B57: =B56+1 -> 26 | D57: IPP Generation | E57: =E28 -> 0 | G57: =G28 -> 0 | H57: =H28 -> 0 | I57: =I28 -> 55.72 | K57: =K28 -> 1983.07
B58: =B57+1 -> 27 | D58: LTA Thermal Generation | E58: 16355 | G58: 31391.29184 | H58: 25299.8509 | I58: 69019.35313 | K58: 84305.7814
B59: 28 | D59: Total LTA Generation | E59: =SUM(E55:E58) -> 420264.9123 | G59: =SUM(G55:G58) -> 450086.272 | H59: =SUM(H55:H58) -> 440676.443 | I59: =SUM(I55:I58) -> 507980.4135 | K59: 538726.0837
D61: Peak - MW2
B63: =B59+1 -> 29 | D63: Integrated System | E63: 92.92603981 | G63: 92.99 | H63: 90 | I63: 103.8 | K63: 112.689
C65: Notes:
C66: 1 | D66: Actual thermal generation reflects actual generation required for maintenance, capital, RFID and all other generation, e.g., peaking. Forecast Actual Generation includes peaking, maintenance (diesel of 0.198 GW.h in 2021, and LNG of 0 MW.h) and capital (0.234 GW.h diesel) requirements reflecting short-term hydro generation forecasts.
C67: 2 | D67: Peak load is one-hour maximum load on the grid (forecasts assume weather normalized temperature).
